Cogmind - Beta 17 @@@ ROGUE MODE // 2026.06.26 @ 23:30:11 Player: Petvaria Result: Destroyed by P-80 Master with Gamma Rifle Performance ------------- Evolutions (7) 3500 Regions Visited (15) 3000 Robots Destroyed (367) 1835 Value Destroyed (18281) 18281 Prototype IDs (51) 1020 Alien Tech Used (0) 0 Bonus (16157) 16157 TOTAL SCORE: 43793 Bonus ------- Triggered High Security 500 High Alert Combat Kills 6621 Follower Combat Kills 869 Prayed to X0-1V1 5000 Entered Garrisons 1000 Used RIF Installer 2000 Scanned by Researcher 500 Friendly Fire -333 Cogmind --------- Core Integrity 0/1300 Matter 216/300 Energy 53/100 System Corruption 68% Temperature Critical (696) Movement Hovering (365) Ox7 Location -3/Research Parts ------- > --- POWER (3) -------- (None) > --- PROPULSION (6) --- Centrium Wheel Centrium Wheel Centrium Wheel Improved Gyrokinetic Inverter > --- UTILITY (7) ------ Huge Storage Unit > --- WEAPON (5) ------- Cooled Phase Gun Precision Phase Gun > --- INVENTORY (25) --- Protomatter-172 Experimental Power Amplifier Experimental Energy Well (600) Matter Compressor (250) Advanced Signal Interpreter Advanced Transmission Jammer Advanced Point Defense System High-powered Tractor Beam Coil Gun Railgun Plasma Cutter CPS Tube (2) Peak State ------------ > --- POWER ------------ Light Antimatter Reactor Particle Reactor Micro Antimatter Reactor > --- PROPULSION ------- Armored Heavy Treads Advanced Heavy Treads Improved Heavy Siege Treads > --- UTILITY ---------- Advanced Cryofiber Web Huge Storage Unit Advanced Weapon Cycler Centrium Heavy Armor Plating Long-range Tractor Beam X0-1V1's Piety Tracker > --- WEAPON ----------- Coil Gun Hypervelocity Railgun Hypervelocity Railgun Helical Railgun Helical Railgun > --- INVENTORY -------- Antimatter Reactor Medium Treads Advanced Heavy Treads Experimental Power Amplifier Advanced Heat Sink Experimental Energy Well Matter Compressor Advanced Signal Interpreter Precision Matter Filter Advanced Weapon Cycler Advanced Transmission Jammer Experimental Core Shielding Experimental Thermal Shield Advanced Point Defense System Advanced System Shield Advanced System Shield Drone Bay Cooled Phase Gun Coil Gun Railgun Tactical Quantum Warhead Plasma Cutter CPS Tube Vibroblade [Rating: 179] Favorites ----------- Power Particle Reactor Engine Cooled Deuterium Engine Power Core Reinforced Fission Core Reactor Particle Reactor Propulsion Light Treads Treads Light Treads Leg Advanced Myomer Leg Wheel High-density Centrium Wheel Hover Unit Improved Gyrokinetic Inverter Utility Huge Storage Unit Device X0-1V1's Piety Tracker Storage Huge Storage Unit Processor Makeshift Targeting Computer Hackware Experimental System Shield Protection Light Armor Plating Weapon Heavy Machine Gun Energy Gun Plasma Rifle Energy Cannon Ion Cannon Ballistic Gun Heavy Machine Gun Ballistic Cannon Battle Cannon Launcher Tactical Quantum Warhead Special Weapon Advanced Remote Datajack Impact Weapon Power Maul Slashing Weapon Scimitar of Distortion Special Melee Weapon Datajack Build | -11 -10 -9 -9 -9 -9 -9 -6 -6 -6 -6 -5 -5 -4 -4 -3 ------- Run | Yrd Mat Mat Sto Gar Rec Scr Fac Gar Fac Gar Fac Gar Fac Gar Res Slots Evolved 14 | . . 2 . . . . 6 . . . 2 . 2 . 2 Power 2 | . . . . . . . 1 . . . . . . . 1 Propulsion 4 | . . 1 . . . . 1 . . . 1 . 1 . . Utility 5 | . . 1 . . . . 2 . . . 1 . 1 . . Weapon 3 | . . . . . . . 2 . . . . . . . 1 Parts Attached 255 | 8 6 27 16 9 5 3 6 14 4 28 . 15 21 7 86 Power 35 | 2 . 4 2 1 . . 1 . 1 6 . 1 . 2 15 Engine 12 | 2 . 4 1 1 . . 1 . 1 2 . . . . . Core 2 | . . . . . . . . . . 1 . . . 1 . Reactor 21 | . . . 1 . . . . . . 3 . 1 . 1 15 Propulsion 63 | 2 . 10 3 3 4 1 1 8 . 6 . 2 6 3 14 Treads 59 | 2 . 10 3 3 4 1 1 8 . 5 . 2 6 1 13 Leg 2 | . . . . . . . . . . 1 . . . . 1 Wheel 2 | . . . . . . . . . . . . . . 2 . Hover . | . . . . . . . . . . . . . . . . Flight . | . . . . . . . . . . . . . . . . Utility 74 | 2 3 4 . 4 . 2 3 3 . 7 . 6 6 1 33 Device 43 | 1 1 1 . . . . 2 1 . 6 . 4 4 1 22 Storage 9 | 1 1 1 . . . . . . . . . . . . 6 Processor 2 | . . . . . . . 1 . . . . . . . 1 Hackware 3 | . . . . . . . . . . . . 1 . . 2 Protection 17 | . 1 2 . 4 . 2 . 2 . 1 . 1 2 . 2 Artifact . | . . . . . . . . . . . . . . . . Weapon 83 | 2 3 9 11 1 1 . 1 3 3 9 . 6 9 1 24 Energy Gun 12 | . . 2 . . . . . . 2 . . 3 2 . 3 Energy Cannon 2 | . . 1 1 . . . . . . . . . . . . Ballistic Gun 56 | 2 2 4 8 1 1 . 1 1 1 8 . 2 6 1 18 Ballistic Cannon 2 | . . 1 . . . . . . . . . . 1 . . Launcher 2 | . . . . . . . . 1 . . . . . . 1 Special Weapon 3 | . . . 1 . . . . . . . . 1 . . 1 Impact Weapon 2 | . . 1 1 . . . . . . . . . . . . Slashing Weapon 3 | . . . . . . . . 1 . 1 . . . . 1 Piercing Weapon . | . . . . . . . . . . . . . . . . Special Melee Weapon 1 | . 1 . . . . . . . . . . . . . . Unidentified Prototypes 15 | . 1 2 2 . . . 1 . 1 . . . 1 . 7 Parts Lost 86 | . . 1 1 6 . . 1 2 . 4 . . 2 23 46 Power 14 | . . 1 . 1 . . . . . . . . 1 3 8 Propulsion 20 | . . . 1 2 . . . 1 . 2 . . . 7 7 Utility 29 | . . . . 3 . . . 1 . 1 . . 1 9 14 Weapon 23 | . . . . . . . 1 . . 1 . . . 4 17 Highest Loss Streak 35 | . . 1 1 4 . . 1 1 . 2 . . 2 14 35 To Critical Strikes 1 | . . . . . . . . . . . . . . 1 . Average Backups 22 | 4 19 23 23 23 22 22 21 22 22 22 21 23 22 21 21 Power 1 | . 1 1 1 1 1 1 1 1 2 2 2 1 1 1 1 Propulsion 3 | 3 7 5 3 3 3 3 2 3 3 2 2 2 3 2 1 Utility 8 | . 3 7 8 8 8 8 7 8 7 8 9 8 6 6 10 Weapon 6 | . 6 7 7 8 7 7 7 6 7 6 5 7 8 8 5 Tool/Special . | . . . . . . . . . . . . . . . . Unused Backups 300 | . . 72 66 17 8 2 . 19 3 26 . 23 3 6 55 Power 22 | . . 8 3 1 2 . . 1 . 2 . 3 . . 2 Propulsion 68 | . . 17 16 2 . . . 5 2 6 . 1 1 4 14 Utility 71 | . . 5 10 3 2 1 . 7 . 7 . 8 2 2 24 Weapon 131 | . . 41 35 11 4 1 . 5 1 10 . 11 . . 12 Tool/Special 8 | . . 1 2 . . . . 1 . 1 . . . . 3 Average Slot Usage (%) 92 | . 99 99 100 98 100 99 90 99 99 87 78 85 85 71 79 Engine 6 | . 14 10 10 10 11 11 6 7 6 5 . . . . . Reactor 4 | . . . . . . . . 4 6 5 11 11 7 2 13 Treads 24 | . 28 33 33 32 33 32 25 26 26 17 15 20 20 9 13 Device 12 | . 1 10 11 11 11 11 13 13 20 16 15 16 21 20 15 Storage 9 | . 14 11 11 11 11 11 6 6 6 6 5 5 5 7 9 Protection 7 | . 11 10 11 10 11 11 6 6 6 6 5 5 5 2 1 Ballistic Gun 20 | . 27 11 18 20 20 19 24 25 23 23 23 19 16 11 20 Peak Build Rating 179 | 7 21 33 37 36 35 37 53 68 73 101 112 124 137 133 179 Average Rating 73 | 5 9 28 32 34 34 35 50 57 70 87 110 115 125 109 158 On Entrance 57 | . 7 21 32 34 35 35 37 53 68 73 101 112 116 131 59 Avg Prop Armor Cover (%) 10 | . . . . . . . . . . . . . 7 13 9 Naked Turns . | . . . . . . . . . . . . . . . . Heaviest Build 197 | 15 92 104 104 108 108 106 115 131 136 140 141 159 166 166 197 Greatest Support 230 | 40 40 60 60 60 60 63 83 103 103 140 175 175 220 220 230 Greatest Overweight (x) 5 | . 2 1 1 2 1 2 1 1 1 1 . 1 . 5 5 Average Overweight (x) . | . 1 1 1 1 1 1 1 1 1 . . . . . . Largest Inventory Capacity 25 | 8 25 25 25 25 25 25 25 25 25 25 25 25 25 25 25 Average Capacity 24 | 7 24 25 25 25 25 25 25 25 25 25 25 25 25 25 25 Most Carried 25 | 7 25 25 25 25 25 25 25 25 25 25 25 25 25 25 25 Average Carried 23 | 4 19 24 24 24 24 24 23 24 24 24 23 24 24 22 23 Final Capacity 25 | 8 25 25 25 25 25 25 25 25 25 25 25 25 25 25 25 Final Carried 25 | 6 25 25 25 25 25 25 24 25 25 25 23 25 25 20 12 Class Distribution -------------------- 38% | Mutant 24% | Tank 20% | Scavenger-Tank 10% | Scavenger-Mutant 3% | Scavenger-Gunner Dominant Class ---------------- Mutant | -10/Materials Mutant | -9/Materials Mutant | -9/Storage Mutant | -9/Garrison Mutant | -9/Recycling Scavenger-Mutant | -9/Scraptown Gunner | -6/Factory Scavenger-Gunner | -6/Garrison Tank | -6/Factory Scavenger-Tank | -6/Garrison Scavenger-Tank | -5/Factory Tank | -5/Garrison Tank | -4/Factory Tank | -4/Garrison Scavenger-Tank | -3/Research Resources | -11 -10 -9 -9 -9 -9 -9 -6 -6 -6 -6 -5 -5 -4 -4 -3 ----------- Run | Yrd Mat Mat Sto Gar Rec Scr Fac Gar Fac Gar Fac Gar Fac Gar Res Matter Collected 14580 | 360 459 960 748 498 278 42 . 997 110 1259 . 1148 639 226 6856 Remotely 3223 | . . . . . . . . . . . . . . . 3223 Salvage Created 19826 | 185 832 1781 1366 1005 1039 . . 1090 39 1454 . 1414 1236 200 8185 Parts 898 | 12 39 94 63 47 33 . . 54 1 84 . 45 36 8 382 Haulers Intercepted 13 | . 2 6 4 . . . . . . . . . 1 . . Recyclers Shooed 22 | . 5 3 2 . 4 . . . . . . . 3 . 5 Parts Field Recycled . | . . . . . . . . . . . . . . . . Retrieved Matter . | . . . . . . . . . . . . . . . . Parts Self-Destructed . | . . . . . . . . . . . . . . . . Prevented . | . . . . . . . . . . . . . . . . Parts Restored . | . . . . . . . . . . . . . . . . Kills | -11 -10 -9 -9 -9 -9 -9 -6 -6 -6 -6 -5 -5 -4 -4 -3 ------- Run | Yrd Mat Mat Sto Gar Rec Scr Fac Gar Fac Gar Fac Gar Fac Gar Res Combat Hostiles Destroyed 285 | . 12 32 21 22 3 . . 25 . 31 . 23 8 2 106 Melee 7 | . . . . . . . . . . 2 . 1 1 2 1 Guns 238 | . 12 11 20 21 3 . . 18 . 28 . 20 7 . 98 Cannons 22 | . . 21 1 . . . . . . . . . . . . AOE 15 | . . . . . . . . 7 . 1 . . . . 7 Classes Destroyed 21 | 3 5 4 . 1 . . . 1 . 3 . 2 . . 2 Worker 14 | 1 1 1 4 . . . . . . . . . 1 . 6 Builder 8 | . . 1 . . 1 . . . . . . . 1 . 5 Tunneler 3 | 3 . . . . . . . . . . . . . . . Hauler 13 | . 2 6 4 . . . . . . . . . 1 . . Recycler 34 | 1 3 4 1 . 11 . . . . . . . 4 . 10 Mechanic 1 | . . . . . . . . . . . . . . . 1 Operator 4 | . 1 1 1 . . . . . . . . . . . 1 Watcher 4 | . 2 1 . . . . . . 1 . . . . . . Swarmer 46 | . 5 7 . . . . . 10 . 6 . 4 1 . 13 Cutter 3 | . . . . . . . . . . 3 . . . . . Saboteur 4 | . . . . . . . . . . . . 1 . . 3 Grunt 124 | . 7 13 13 14 . . . 6 . 12 . 12 3 2 42 Brawler 13 | . . 1 . 2 . . . 3 . . . . . . 7 Duelist 8 | . . 2 1 1 . . . . . . . 2 . . 2 Protector 3 | . . . . . . . . . . . . . . . 3 Sentry 40 | . . 9 7 3 3 . . 5 . 4 . 3 . . 6 Specialist 1 | . . . . . . . . . . 1 . . . . . Hunter 10 | . . . . . . . . 1 . 1 . . 2 . 6 Programmer 30 | . . . . 2 . . . . . 3 . . 2 . 23 Behemoth 2 | . . . . . . . . . . 1 . . . . 1 Striker 1 | . . . . . . . . . . . . 1 . . . Savage 1 | . . . . . 1 . . . . . . . . . . Best Kill Streak 10 | 2 3 4 3 5 6 . . 8 1 4 . 8 3 1 10 Combat Bots Only 9 | . 3 3 3 5 1 . . 8 . 4 . 8 3 1 9 Max Kills in Single Turn 3 | 1 1 2 1 2 2 . . 3 1 2 . 1 2 1 3 Gunslinging 1 | . . . . 1 . . . . . 1 . . . . 1 Exploded 3 | . . . . . . . . 3 . 1 . . . . 3 Melee 1 | . . . . . . . . . . 1 . 1 1 1 1 Uniques/NPCs Destroyed . | . . . . . . . . . . . . . . . . Combat | -11 -10 -9 -9 -9 -9 -9 -6 -6 -6 -6 -5 -5 -4 -4 -3 -------- Run | Yrd Mat Mat Sto Gar Rec Scr Fac Gar Fac Gar Fac Gar Fac Gar Res Hostile Shots Fired 2714 | . 54 116 83 118 30 . . 218 7 226 . 165 160 416 1121 Missed 621 | . 18 35 23 24 6 . . 59 1 82 . 23 32 83 235 Hits 2093 | . 36 81 60 94 24 . . 159 6 144 . 142 128 333 886 Melee 90 | . . 1 . 4 . . . 2 . 17 . 11 . . 55 Projectile 2003 | . 36 80 60 90 24 . . 157 6 127 . 131 128 333 831 AOE 4 | . . . . . . . . . . 3 . . . . 1 Critical Strikes 127 | . 2 2 2 2 . . . 2 . 15 . 7 4 21 70 Part Disruptions 6 | . . . . . . . . . . . . . . . 6 Damage Taken 34668 | . 385 930 769 1223 357 . . 1292 110 2669 . 2537 1923 5372 17101 Core 2722 | . 31 88 113 144 17 . . 62 10 113 . 77 89 667 1311 Absorbed by Shields 3558 | . . . . . . . . 380 . 55 . 613 428 358 1724 Reduced by Siege Mode 1758 | . . . . . . . . . . 14 . 61 23 13 1647 Ignored by Resistances 1827 | . . . . . . . . 20 12 24 . . 334 578 859 Regen/Repaired (Parts) 1067 | . 73 . . . . 366 . . . . . . . . 628 Core Remaining (%) 66 | 100 44 . . . . 33 . . . 84 . 97 . 42 . Volleys Fired 884 | 14 69 112 90 61 35 . . 68 4 81 . 67 35 7 241 Largest 5 | 2 2 2 2 2 2 . . 4 4 4 . 4 4 4 5 Hottest 301 | 40 40 83 98 98 98 . . 106 161 164 . 206 138 130 301 Shots Fired 2593 | 28 138 211 172 116 69 . . 179 10 279 . 202 119 29 1041 Gun 2426 | 28 138 104 157 113 58 . . 176 8 279 . 200 114 29 1022 Cannon 151 | . . 107 15 3 11 . . . . . . . 5 . 10 Launcher 13 | . . . . . . . . 3 2 . . . . . 8 Special 3 | . . . . . . . . . . . . 2 . . 1 Kinetic 2429 | 28 138 170 157 113 58 . . 176 7 263 . 171 112 29 1007 Thermal 140 | . . 41 15 3 11 . . . 1 16 . 29 7 . 17 Explosive 13 | . . . . . . . . 3 2 . . . . . 8 Electromagnetic 8 | . . . . . . . . . . . . . . . 8 Robot Hit Streak 47 | 5 12 16 26 34 19 . . 47 14 25 . 16 11 4 29 Robot Miss Streak 8 | 3 4 5 3 2 3 . . 2 5 4 . 8 4 3 6 Penetration Max 2 | . . . . . . . . . . 1 . 1 1 . 2 Secondary Targets 72 | . . . 2 5 . . . 7 . 10 . 6 3 . 39 Max Gunslinging Chain 2 | . . . 1 1 . . . 1 . 1 . 1 1 . 2 Shots Hit Robots 1786 | 17 90 132 124 89 49 . . 123 3 170 . 145 86 30 728 Core Hits 803 | 6 35 52 49 33 25 . . 57 3 74 . 77 33 14 345 Critical Kills 30 | . . 1 . 2 . . . . 1 1 . 1 . . 24 Critical Parts Destroyed 44 | 1 . . 1 1 . . . . . . . 2 2 . 37 Critical Strikes 83 | 1 . 2 1 3 . . . . 1 2 . 5 2 . 66 Burn 1 | . . . . . . . . . . . . 1 . . . Meltdown 1 | . . . . 1 . . . . . . . . . . . Destroy 79 | 1 . 1 1 2 . . . . 1 2 . 4 2 . 65 Blast 1 | . . 1 . . . . . . . . . . . . . Sever 1 | . . . . . . . . . . . . . . . 1 Melee Attacks 85 | . . 1 7 . . . . 6 . 10 . 18 19 17 7 Impact 8 | . . 1 7 . . . . . . . . . . . . Slashing 77 | . . . . . . . . 6 . 10 . 18 19 17 7 Piercing . | . . . . . . . . . . . . . . . . Sneak Attacks 3 | . . . 1 . . . . . . . . . 2 . . Combat Hostiles . | . . . . . . . . . . . . . . . . Follow-up Attacks . | . . . . . . . . . . . . . . . . Damage Inflicted 42617 | 242 1200 2523 2084 1387 891 . . 2564 132 3603 . 3618 2469 979 20925 Guns 35671 | 237 1178 957 1836 1362 684 . . 2061 49 3413 . 2929 1801 448 18716 Cannons 1943 | . . 1555 100 25 200 . . . . . . . . . 63 Explosions 2601 | . . . . . . . . 503 83 . . 81 26 . 1908 Melee 2168 | . . . 96 . . . . . . 190 . 608 600 521 153 Ramming 234 | 5 22 11 52 . 7 . . . . . . . 42 10 85 Kinetic 34889 | 237 1178 1714 1836 1362 684 . . 2061 49 3184 . 2259 1722 448 18155 Thermal 2626 | . . 798 100 25 200 . . . . 229 . 670 79 . 525 Explosive 2601 | . . . . . . . . 503 83 . . 81 26 . 1908 Electromagnetic 99 | . . . . . . . . . . . . . . . 99 Impact 96 | . . . 96 . . . . . . . . . . . . Slashing 2072 | . . . . . . . . . . 190 . 608 600 521 153 Piercing . | . . . . . . . . . . . . . . . . Highest Corruption 68 | . . 1 1 2 2 . . . 1 2 . . 8 8 68 Average Corruption 5 | . . 1 1 1 2 . . . 1 1 . . 7 8 15 Corruption Purged . | . . . . . . . . . . . . . . . . Corruption Blocked . | . . . . . . . . . . . . . . . . Effects 296 | . . 14 11 12 9 . . . 5 33 . . 9 13 190 Message Errors 61 | . . 4 2 3 . . . . 2 10 . . 1 1 38 Matter Fused 59 | . . 3 3 3 4 . . . . 10 . . . 4 32 Heat Flow Errors 31 | . . 3 1 2 2 . . . 1 3 . . . 4 15 Energy Discharges 30 | . . 2 3 1 1 . . . 2 2 . . 3 1 15 Parts Rejected 1 | . . . . . . . . . . . . . . . 1 Parts Fused 4 | . . . . . . . . . . . . . . . 4 Data Loss (minor) 31 | . . 1 1 1 1 . . . . 4 . . 1 2 20 Data Loss (major) 15 | . . 1 . . . . . . . 2 . . 1 . 11 Misfires 11 | . . . . 1 1 . . . . . . . 2 1 6 Alerts 5 | . . . . 1 . . . . . . . . . . 4 Misdirections 2 | . . . . . . . . . . . . . . . 2 Weapon Failures 46 | . . . 1 . . . . . . 2 . . 1 . 42 Overload Shots 4 | . . . . . . . . . . . . . . . 4 Overflow Damage 284 | . 4 2 71 . . . . 1 . . . . 116 . 90 Projectiles 2 | . . 2 . . . . . . . . . . . . . Explosions 90 | . . . . . . . . 1 . . . . . . 89 Melee 192 | . 4 . 71 . . . . . . . . . 116 . 1 Knockbacks 7 | 1 . 6 . . . . . . . . . . . . . Impact 1 | 1 . . . . . . . . . . . . . . . Kinetic 6 | . . 6 . . . . . . . . . . . . . Secondary . | . . . . . . . . . . . . . . . . Self-Inflicted Damage 421 | . . . . . . . . 57 34 . . 35 42 . 253 Shots 8 | . . . . . . . . 1 1 . . 1 1 . 4 Rammed 17 | 1 4 2 5 . 1 . . . . . . . 1 . 3 Targets Rammed 20 | 1 4 2 6 . 1 . . . . . . . 1 1 4 Kicked 1 | . . . . . . . . . . . . . . 1 . Crushed 2 | . . . 1 . . . . . . . . . . . 1 Highest Temperature 698 | . 24 275 277 208 333 . . 187 72 170 . 387 59 593 698 Average Temperature 97 | . 11 65 63 49 126 . . 65 25 36 . 124 19 211 135 Received Heat Transfer 6914 | . 171 279 390 435 117 . . 322 . 481 . 847 95 1419 2358 Effects 35 | . . . 2 . 3 . . . . . . 5 . 16 9 Shutdowns 10 | . . . . . . . . . . . . 2 . 7 1 Energy Bleed 7 | . . . 2 . . . . . . . . 2 . 1 2 Interference 8 | . . . . . 3 . . . . . . 1 . 1 3 Matter Decay 1 | . . . . . . . . . . . . . . 1 . Short Circuit 2 | . . . . . . . . . . . . . . 1 1 Damage (minor) 4 | . . . . . . . . . . . . . . 3 1 Damage (major) 3 | . . . . . . . . . . . . . . 2 1 Siege Activations 31 | . . . . . . . . . . 2 . 3 3 1 22 Total Turns 605 | . . . . . . . . . . 24 . 74 49 6 452 Longest Duration 52 | . . . . . . . . . . 23 . 29 22 6 52 Martial Activations . | . . . . . . . . . . . . . . . . Shielding Activations . | . . . . . . . . . . . . . . . . Robots Disrupted . | . . . . . . . . . . . . . . . . Combat Hostiles . | . . . . . . . . . . . . . . . . Robots Corrupted 1 | . 1 . . . . . . . . . . . . . . Combat Hostiles . | . . . . . . . . . . . . . . . . Parts Fried 1 | . 1 . . . . . . . . . . . . . . Impact Corruptions 3 | . 1 . 1 . . . . . . . . . . . 1 Robots Melted 1 | . . . . 1 . . . . . . . . . . . Combat Hostiles 1 | . . . . 1 . . . . . . . . . . . Parts Melted 4 | . . 1 . 2 . . . . . . . 1 . . . Heat Transferred 3489 | . . 1295 148 17 296 . . . . 500 . 704 150 . 379 Parts Sabotaged 1 | . . . . . . . . . . . . 1 . . . Parts Stolen . | . . . . . . . . . . . . . . . . Parts Stripped 16 | . . . . . . . . . . . . 16 . . . Power Chain Reactions . | . . . . . . . . . . . . . . . . Alert | -11 -10 -9 -9 -9 -9 -9 -6 -6 -6 -6 -5 -5 -4 -4 -3 ------- Run | Yrd Mat Mat Sto Gar Rec Scr Fac Gar Fac Gar Fac Gar Fac Gar Res Maximum Alert Level 5 | . . 1 2 3 2 . . 4 2 5 3 5 3 3 5 Low Security (%) 26 | 100 100 74 33 . 27 . 100 14 . . . . . . . Level 1 16 | . . 25 66 18 48 . . 3 . 1 . . . . 23 Level 2 16 | . . . . 35 23 . . 28 100 38 . 2 . 11 15 Level 3 22 | . . . . 46 . . . 43 . 19 100 43 100 88 22 Level 4 12 | . . . . . . . . 9 . 36 . 23 . . 25 Level 5 4 | . . . . . . . . . . 3 . 30 . . 6 High Security 1 | . . . . . . . . . . . . . . . 6 Max Security . | . . . . . . . . . . . . . . . . Peak Influence 2407 | 10 79 398 401 1009 474 . . 1101 677 1690 886 1940 1064 813 2407 Initial 1018 | . . . 154 262 453 . . . 577 382 886 613 1018 701 434 Average 632 | 1 12 162 260 668 297 . . 680 604 953 884 1230 1019 723 961 Influence Increases 11140 | 25 353 986 746 807 139 . . 1161 168 1508 . 1427 366 302 3152 Destroy 0b10 Robot/C 6200 | . 240 640 420 460 60 . . 580 60 740 . 700 200 40 2060 Destroy 0b10 Robot/NC 440 | 25 45 70 50 . 60 . . . 10 . . 10 35 5 130 Destroy Leader 906 | . 48 194 118 10 . . . 40 14 40 . 40 42 10 350 Allied During Kill 174 | . . . . 2 1 . . 17 17 35 . 82 20 . . Successful Hack 176 | . 3 16 8 . 14 . . 21 24 7 . 42 . . 41 Disable Machine 270 | . . 30 60 15 . . . 15 30 . . . . 15 105 Anti-Garrison Action 1700 | . . . . 300 . . . 350 . 600 . 450 . . . Destroy Structure 779 | . 2 21 15 5 4 . . 138 13 86 . 28 54 7 406 Lose Combat Pursuer 495 | . 15 15 75 15 . . . . . . . 75 15 225 60 Influence Decreases 8801 | 25 353 620 708 202 996 152 . 60 722 365 814 363 1304 531 1586 Entered New Map 4380 | . . . 212 142 556 152 . . 524 165 804 263 922 301 339 Time Decay 3211 | 25 353 600 486 . 440 . . . 198 . 10 . 342 . 757 Lost Part 850 | . . 10 10 60 . . . 20 . 40 . . 20 230 460 Lost Ally 360 | . . 10 . . . . . 40 . 160 . 100 20 . 30 Squads Dispatched 41 | . 2 3 3 . . . . . 1 . . . 2 . 30 Investigation 1 | . . 1 . . . . . . . . . . . . . Extermination 10 | . . . . . . . . . . . . . 2 . 8 Reinforcement 11 | . 2 2 1 . . . . . . . . . . . 6 Assault 16 | . . . . . . . . . 1 . . . . . 15 Garrison 3 | . . . 2 . . . . . . . . . . . 1 Intercept . | . . . . . . . . . . . . . . . . Searches Triggered . | . . . . . . . . . . . . . . . . Construction Impeded 1 | . . . . . . . . . . . . . . . 1 Haulers Reinforced 1 | . . . . . . . . . . . . . . . 1 Active Scanning Responses . | . . . . . . . . . . . . . . . . Cargo Convoy Interrupts . | . . . . . . . . . . . . . . . . Stealth | -11 -10 -9 -9 -9 -9 -9 -6 -6 -6 -6 -5 -5 -4 -4 -3 --------- Run | Yrd Mat Mat Sto Gar Rec Scr Fac Gar Fac Gar Fac Gar Fac Gar Res Distress Signals 18 | . 2 2 7 . . . . . . . . . 1 . 6 Communications Jammed 5 | . . . . . . . . . . . . . 5 . . Distress Signals 5 | . . . . . . . . . . . . . 5 . . Times Spotted 470 | . 25 57 32 23 3 . . 31 3 41 . 48 16 21 170 Peak Tracking Total 15 | . 4 5 4 5 1 . . 8 3 5 . 6 5 15 15 Tactical Retreats 20 | . 1 1 5 1 . . . . . . . 4 1 4 3 Traps | -11 -10 -9 -9 -9 -9 -9 -6 -6 -6 -6 -5 -5 -4 -4 -3 ------- Run | Yrd Mat Mat Sto Gar Rec Scr Fac Gar Fac Gar Fac Gar Fac Gar Res Traps Triggered 28 | . . . . 10 . . 1 5 2 4 . 2 . 1 3 Indirectly . | . . . . . . . . . . . . . . . . Trap Hack Attempts 17 | . 17 . . . . . . . . . . . . . . Triggered . | . . . . . . . . . . . . . . . . Disarmed 1 | . 1 . . . . . . . . . . . . . . Reprogrammed . | . . . . . . . . . . . . . . . . Reused . | . . . . . . . . . . . . . . . . Traps Extracted . | . . . . . . . . . . . . . . . . Installed . | . . . . . . . . . . . . . . . . Triggered . | . . . . . . . . . . . . . . . . Most Traps Carried 4 | . . 4 . . . . . 3 . . . . . . . Machines | -11 -10 -9 -9 -9 -9 -9 -6 -6 -6 -6 -5 -5 -4 -4 -3 ---------- Run | Yrd Mat Mat Sto Gar Rec Scr Fac Gar Fac Gar Fac Gar Fac Gar Res Machines Disabled 35 | . . 2 4 4 . . . 8 2 3 . 4 . 1 7 Max in Single Turn 2 | . . 1 1 1 . . . 2 2 1 . 1 . 1 1 Garrison Access 3 | . . . . . . . . . . . . . . . 3 Garrison Relay 13 | . . . . 3 . . . 3 . 3 . 4 . . . Phase Generator 1 | . . . . . . . . 1 . . . . . . . Machines Repaired . | . . . . . . . . . . . . . . . . Machines Dismantled 2 | . . . 1 1 . . . . . . . . . . . Machines Sabotaged . | . . . . . . . . . . . . . . . . Overloaded Fab Kills . | . . . . . . . . . . . . . . . . Hacking | -11 -10 -9 -9 -9 -9 -9 -6 -6 -6 -6 -5 -5 -4 -4 -3 --------- Run | Yrd Mat Mat Sto Gar Rec Scr Fac Gar Fac Gar Fac Gar Fac Gar Res Machines Accessed 52 | . 2 8 6 2 5 . 3 3 2 3 1 4 1 . 12 Terminals 35 | . 1 6 5 2 4 . 1 3 . 3 . 4 . . 6 Fabricators 3 | . . . . . . . 1 . . . . . . . 2 Repair Stations 2 | . 1 . . . . . . . 1 . . . . . . Recycling Units 1 | . . . . . 1 . . . . . . . . . . Scanalyzers 3 | . . 2 . . . . . . . . . . . . 1 Garrison Access 8 | . . . 1 . . . 1 . 1 . 1 . 1 . 3 Total Hacks 103 | . 7 21 9 5 10 . 5 5 3 6 1 9 1 . 21 Successful 45 | . 3 11 4 . 8 . 1 2 2 2 1 3 1 . 7 Failed 56 | . 4 9 5 5 2 . 4 3 1 4 . 6 . . 13 Catastrophic 8 | . . . 1 1 . . . . 1 2 . 1 . . 2 Database Lockouts 2 | . . 1 . . . . . . . . . . . . 1 Manual 45 | . 2 16 4 . 8 . 3 1 . 1 . 2 . . 8 Terminals 74 | . 3 16 7 5 8 . 3 5 . 6 . 9 . . 12 Fabricators 4 | . . . . . . . 1 . . . . . . . 3 Repair Stations 6 | . 4 . . . . . . . 2 . . . . . . Recycling Units 2 | . . . . . 2 . . . . . . . . . . Scanalyzers 8 | . . 5 . . . . . . . . . . . . 3 Garrison Access 9 | . . . 2 . . . 1 . 1 . 1 . 1 . 3 Terminal Hacks 9 | . 1 . 2 . . . . 2 . 2 . 2 . . . Open Door 4 | . . . 2 . . . . 1 . 1 . . . . . Emergency Access Points 2 | . . . . . . . . 1 . 1 . . . . . Hauler Manifests 1 | . 1 . . . . . . . . . . . . . . Patrol Navigation 1 | . . . . . . . . . . . . 1 . . . Security Stations 1 | . . . . . . . . . . . . 1 . . . Fabricator Hacks 1 | . . . . . . . . . . . . . . . 1 Build 1 | . . . . . . . . . . . . . . . 1 Repair Station Hacks 3 | . 2 . . . . . . . 1 . . . . . . Scan Component 2 | . 1 . . . . . . . 1 . . . . . . Repair 1 | . 1 . . . . . . . . . . . . . . Recycling Unit Hacks 2 | . . . . . 2 . . . . . . . . . . Retrieve Components 2 | . . . . . 2 . . . . . . . . . . Scanalyzer 4 | . . 2 . . . . . . . . . . . . 2 Insert Component 1 | . . . . . . . . . . . . . . . 1 Retrieve Study 3 | . . 2 . . . . . . . . . . . . 1 Garrison Access Hacks 8 | . . . 1 . . . 1 . 1 . 1 . 1 . 3 Unlock Access 5 | . . . 1 . . . 1 . 1 . 1 . 1 . . Seal Access 3 | . . . . . . . . . . . . . . . 3 Unauthorized Hacks 18 | . . 9 1 . 6 . . . . . . 1 . . 1 Terminals 18 | . . 9 1 . 6 . . . . . . 1 . . 1 Assimilate 1 | . . 1 . . . . . . . . . . . . . Botnet 8 | . . 3 1 . 2 . . . . . . 1 . . 1 Skim 9 | . . 5 . . 4 . . . . . . . . . . Fabricators . | . . . . . . . . . . . . . . . . Repair Stations . | . . . . . . . . . . . . . . . . Recycling Units . | . . . . . . . . . . . . . . . . Scanalyzers . | . . . . . . . . . . . . . . . . Garrison Access . | . . . . . . . . . . . . . . . . Data Cores Recovered . | . . . . . . . . . . . . . . . . Used . | . . . . . . . . . . . . . . . . Hacking Detections 34 | . 2 4 2 2 2 . 1 3 2 3 . 4 1 . 8 Full Trace Events 4 | . . 1 . 1 . . . . . 1 . 1 . . . Feedback Events 1 | . . 1 . . . . . . . . . . . . . Corruption 1 | . . 1 . . . . . . . . . . . . . Feedback Blocked . | . . . . . . . . . . . . . . . . Robot Schematics Acquired . | . . . . . . . . . . . . . . . . Robots Built . | . . . . . . . . . . . . . . . . Authchips . | . . . . . . . . . . . . . . . . Time . | . . . . . . . . . . . . . . . . Total Robot Build Rating . | . . . . . . . . . . . . . . . . Part Schematics Acquired . | . . . . . . . . . . . . . . . . Parts Built 1 | . . . . . . . . . . . . . . . 1 Authchips . | . . . . . . . . . . . . . . . . Time 46 | . . . . . . . . . . . . . . . 46 Total Part Build Rating 9 | . . . . . . . . . . . . . . . 9 Part Studies Acquired 3 | . . 2 . . . . . . . . . . . . 1 Parts Repaired 1 | . 1 . . . . . . . . . . . . . . Time 26 | . 26 . . . . . . . . . . . . . . Parts Recycled . | . . . . . . . . . . . . . . . . Recycled Matter . | . . . . . . . . . . . . . . . . Retrieved Matter . | . . . . . . . . . . . . . . . . Retrieved Components 7 | . . . . . 7 . . . . . . . . . . Parts Scanalyzed . | . . . . . . . . . . . . . . . . Part Schematics Acquired . | . . . . . . . . . . . . . . . . Parts Damaged . | . . . . . . . . . . . . . . . . Bothacking | -11 -10 -9 -9 -9 -9 -9 -6 -6 -6 -6 -5 -5 -4 -4 -3 ------------ Run | Yrd Mat Mat Sto Gar Rec Scr Fac Gar Fac Gar Fac Gar Fac Gar Res Used RIF Installer 4 | . . . . 1 . . . 1 . 1 . 1 . . . Watcher Feeds 1 | . . . . . . . . . . . . 1 . . . Structural Interface 1 | . . . . . . . . . . 1 . . . . . Program Shield 1 | . . . . . . . . 1 . . . . . . . Robots Hacked 3 | . . . . . . . . . . . . 2 . . 1 Non-combat 1 | . . . . . . . . . . . . . . . 1 Combat 2 | . . . . . . . . . . . . 2 . . . Robot Hacks Applied 3 | . . . . . . . . . . . . 2 . . 1 formatsys_low 1 | . . . . . . . . . . . . . . . 1 formatsys_high 2 | . . . . . . . . . . . . 2 . . . Relay Couplers Released 51 | . . . . 10 . . . 13 . 12 . 16 . . . Machine Destruction 51 | . . . . 10 . . . 13 . 12 . 16 . . . Attached 2 | . . . . . . . . . . . . 1 . . 1 Fabnet Peak Effective % . | . . . . . . . . . . . . . . . . Robots Rewired 8 | . . . . . . . . . . 6 . 2 . . . Allies Hacked . | . . . . . . . . . . . . . . . . Hacks Repelled . | . . . . . . . . . . . . . . . . Allies | -11 -10 -9 -9 -9 -9 -9 -6 -6 -6 -6 -5 -5 -4 -4 -3 -------- Run | Yrd Mat Mat Sto Gar Rec Scr Fac Gar Fac Gar Fac Gar Fac Gar Res Total Allies 21 | . . 1 . 1 . . . 4 . 8 . 6 . . 1 Largest Group 4 | . . 1 . 1 1 . . 2 2 4 . 2 1 . 1 Highest-Rated Group 198 | . . 10 . 20 20 . . 160 160 147 . 198 89 . 36 Highest-Rated Ally 99 | . . 10 . 20 20 . . 80 80 80 . 99 89 . 36 Total Orders 16 | . . . . . . . 3 . . . . 4 . . 9 STAY 2 | . . . . . . . . . . . . 2 . . . FOLLOW 2 | . . . . . . . . . . . . 2 . . . AID 1 | . . . . . . . . . . . . . . . 1 EXPLORE 7 | . . . . . . . 2 . . . . . . . 5 RETURN 4 | . . . . . . . 1 . . . . . . . 3 Ally Attacks 128 | . . . . 3 2 . . 9 10 36 . 62 6 . . Total Damage 4030 | . . . . 94 . . . 303 279 961 . 2174 219 . . Kills 29 | . . . . 1 . . . 4 4 6 . 12 2 . . Allies Corrupted . | . . . . . . . . . . . . . . . . Allies Melted . | . . . . . . . . . . . . . . . . X0-1V1 Amusement Gains 139 | . 15 . . . . . 15 30 5 4 . 6 20 8 36 Good Acts 158 | . . 40 30 10 1 . . 11 1 11 . 12 6 6 30 Bad Acts 102 | . . 25 23 5 6 . . 6 2 10 . 7 . 4 14 Intel | -11 -10 -9 -9 -9 -9 -9 -6 -6 -6 -6 -5 -5 -4 -4 -3 ------- Run | Yrd Mat Mat Sto Gar Rec Scr Fac Gar Fac Gar Fac Gar Fac Gar Res Active Infowar (turns) 2129 | 7 203 . . . . . . . . 269 23 736 602 289 . Seismic 210 | 7 203 . . . . . . . . . . . . . . Jamming 1919 | . . . . . . . . . . 269 23 736 602 289 . Robot Analysis Total . | . . . . . . . . . . . . . . . . Derelict Logs Recovered . | . . . . . . . . . . . . . . . . Drone Launches 10 | . . . . . . . 2 . . . . . . . 8 Drone Recoveries 8 | . . . . . . . 2 . . . . . . . 6 Exploration | -11 -10 -9 -9 -9 -9 -9 -6 -6 -6 -6 -5 -5 -4 -4 -3 ------------- Run | Yrd Mat Mat Sto Gar Rec Scr Fac Gar Fac Gar Fac Gar Fac Gar Res Turns Passed 22774 | 240 2312 2511 1277 1534 1086 1863 203 1665 406 2342 23 1816 764 336 4396 Spaces Moved 9022 | 124 630 961 393 602 472 909 80 623 162 918 12 882 317 150 1787 Core 20 | 20 . . . . . . . . . . . . . . . Treads 8875 | 104 630 961 393 602 472 909 80 623 162 918 12 882 317 80 1730 Legs 32 | . . . . . . . . . . . . . . 32 . Wheels 95 | . . . . . . . . . . . . . . 38 57 Hover . | . . . . . . . . . . . . . . . . Flight . | . . . . . . . . . . . . . . . . Fastest Speed 50 | 50 160 200 200 200 200 200 225 210 230 180 156 148 152 130 148 Average Speed 197 | 142 318 200 200 200 200 202 225 216 230 199 156 157 157 162 168 Slowest Speed 320 | 160 320 240 200 240 200 240 225 230 230 270 156 232 160 240 247 Overloaded Moves . | . . . . . . . . . . . . . . . . Propulsion Burnouts . | . . . . . . . . . . . . . . . . Robots Hopped 1 | . . . . . . . 1 . . . . . . . . Potential Cave-ins . | . . . . . . . . . . . . . . . . Cave-ins Triggered . | . . . . . . . . . . . . . . . . Exploration Rate (%) 58 | 5 96 77 57 76 94 59 7 93 7 95 . 94 8 40 62 Regions Visited 15 Branch Regions 3 Pre-discovered Areas 1 | . . 1 . . . . . . . . . . . . . Known Exits Taken 5 | . . . 1 . . . 1 . 1 . 1 . 1 . . Unknown Exits Taken 5 | 1 1 1 . . 1 1 . . . . . . . . . Scrap Searched 3 | . . . . . . 3 . . . . . . . . . Spaces Dug 28 | . . 4 7 . . . . 3 . . . . 7 1 6 Terrain Destroyed 576 | . . 13 12 . 3 . . 158 9 2 . 4 32 1 342 Melee 12 | . . 1 6 . . . . 3 . . . . 1 1 . Projectile 135 | . . 12 6 . 3 . . . . 1 . 4 27 . 82 AOE 425 | . . . . . . . . 155 9 . . . 4 . 257 Terrain Rammed . | . . . . . . . . . . . . . . . . Walls Destroyed . | . . . . . . . . . . . . . . . . Machines Disabled . | . . . . . . . . . . . . . . . . Actions | -11 -10 -9 -9 -9 -9 -9 -6 -6 -6 -6 -5 -5 -4 -4 -3 --------- Run | Yrd Mat Mat Sto Gar Rec Scr Fac Gar Fac Gar Fac Gar Fac Gar Res Total 12325 | 159 790 1392 720 807 555 928 101 840 190 1269 16 1161 482 202 2713 Wait 705 | . 42 70 56 39 18 . 2 8 . 67 . 62 38 . 303 Move 9010 | 123 629 960 393 601 471 908 78 622 162 917 12 881 317 149 1787 Hop 1 | . . . . . . . 1 . . . . . . . . Pick Up 488 | 13 21 86 53 28 9 3 8 41 6 58 1 41 21 4 95 Fast Attach 59 | . . 6 3 5 . 3 . 1 5 7 . 2 5 . 22 Attach 114 | 7 1 4 1 4 . . 8 5 1 11 2 5 10 6 49 Detach 14 | . . . . . . . . 1 . 1 . . 3 . 9 Swap 217 | 1 6 21 18 10 6 6 3 17 2 17 . 17 10 4 79 Drop 579 | . 1 130 85 29 15 8 1 46 10 65 1 41 23 7 117 Fire 884 | 14 69 112 90 61 35 . . 68 4 81 . 67 35 7 241 Melee 85 | . . 1 7 . . . . 6 . 10 . 18 19 17 7 Ram . | . . . . . . . . . . . . . . . . Kick 1 | . . . . . . . . . . . . . . 1 . Crush 19 | 1 4 2 6 . 1 . . . . . . . 1 . 4 Escape Stasis 28 | . . . . 18 . . . 10 . . . . . . . Rewire 44 | . . . . . . . . . . 35 . 8 . 1 . Trap 17 | . 17 . . . . . . . . . . . . . . Miscellaneous 60 | . . . 8 12 . . . 15 . . . 19 . 6 . Route ------- -11/Scrapyard -10/Materials (discovered 5 exits: *Mat x3 / [*Min] / [*Sub]) -9/Materials (discovered 7 exits: *Mat x3 / [*Min x2] / *Sto x2) -9/Storage (discovered 3 exits: Mat / *Rec / Gar) -9/Garrison (discovered 3 exits: *Rec x3) -9/Recycling (discovered 2 exits: [*Fac] / [*Scr]) -9/Scraptown -6/Factory -6/Garrison (discovered 3 exits: *Fac x3) -6/Factory -6/Garrison (discovered 3 exits: *Fac x3) -5/Factory -5/Garrison (discovered 3 exits: *Fac x3) -4/Factory -4/Garrison -3/Research (discovered 1 exit: *Res) History --------- Turn | Location | Event 10 | -11/Scrapyard | Discovered new exit (range 16) 241 | -11/Scrapyard | Entered Materials 314 | -10/Materials | Build established: Mutant 1080 | -10/Materials | Discovered new exit (range 8) 1325 | -10/Materials | Discovered new exit (range 13) 1771 | -10/Materials | Discovered new exit (range 4) 1941 | -10/Materials | Repaired Lgt. Armor Plating 2091 | -10/Materials | Discovered new exit (range 8) 2418 | -10/Materials | Discovered new exit (range 8) 2443 | -10/Materials | Made a sacrifice at D.C.S.S. Altar Unit 2444 | -10/Materials | Core integrity fell below 50% 2553 | -10/Materials | Entered another Materials area 2553 | -9/Materials | Evolved 2 slots: Propulsion x1, Utility x1 2714 | -9/Materials | Forcibly received Sfc. Transmogifier from X0-1V1 2801 | -9/Materials | Discovered new exit (range 5) 2805 | -9/Materials | Discovered new exit (range 13) 3217 | -9/Materials | Discovered new exit (range 10) 3293 | -9/Materials | Discovered new exit (range 7) 3792 | -9/Materials | Discovered new exit (range 15) 4180 | -9/Materials | Central database locked down 4744 | -9/Materials | Discovered new exit (range 6) 4752 | -9/Materials | Build established: Scavenger-Mutant 4838 | -9/Materials | Learned Storage trap positions 4863 | -9/Materials | Learned Storage trap positions 4878 | -9/Materials | Learned Storage security intel 4883 | -9/Materials | Learned Storage trap positions 4884 | -9/Materials | Learned Materials stockpile data 4892 | -9/Materials | Identified exit to Materials 4908 | -9/Materials | Learned location of Zion (-7) 5064 | -9/Materials | Entered Storage 5066 | -9/Storage | Loaded intel: 24 trap records 5149 | -9/Storage | Build established: Mutant 5639 | -9/Storage | Used back door to open Recycling access 5639 | -9/Storage | Discovered new exit (range 5) 6037 | -9/Storage | Core integrity fell below 50% 6045 | -9/Storage | Garrison activated, responded to threat 6228 | -9/Storage | Garrison activated, responded to threat 6341 | -9/Storage | Identified exit to Garrison 6341 | -9/Storage | Entered Garrison 6399 | -9/Garrison | Triggered checkpoint 6505 | -9/Garrison | Garrison Relay disabled 6611 | -9/Garrison | Triggered checkpoint 6633 | -9/Garrison | Triggered checkpoint 6765 | -9/Garrison | Triggered checkpoint 6805 | -9/Garrison | Discovered new exit (range 10) 6869 | -9/Garrison | Triggered checkpoint 7040 | -9/Garrison | Core integrity fell below 20% 7082 | -9/Garrison | Lost 4 parts (1p1n2u) 7165 | -9/Garrison | Garrison Relay disabled 7233 | -9/Garrison | Discovered new exit (range 15) 7439 | -9/Garrison | Triggered checkpoint 7468 | -9/Garrison | Garrison Relay disabled 7519 | -9/Garrison | Rescued a captive Derelict 7595 | -9/Garrison | Discovered new exit (range 12) 7797 | -9/Garrison | Installed Relay Interface Framework 7875 | -9/Garrison | Entered Recycling 7875 | -9/Recycling | Accompanied by 1 ally 8148 | -9/Recycling | Discovered new exit (range 10) 8915 | -9/Recycling | Scanned before Scraplab entrance 8943 | -9/Recycling | Entered Scraplab 8959 | -9/Recycling | Discovered new exit (range 2) 8961 | -9/Recycling | Entered Scraptown 8961 | -9/Scraptown | System corruption cleaned by C-Scrubber 9093 | -9/Scraptown | Build established: Scavenger-Mutant 9496 | -9/Scraptown | Discovered new exit (range 7) 9632 | -9/Scraptown | Visited CPS Storage 9658 | -9/Scraptown | Visited CR-KLE's Repair Center 9966 | -9/Scraptown | Visited Comm Corps 10034 | -9/Scraptown | Visited Red Mages 10120 | -9/Scraptown | Visited Fellowship of the Rings 10144 | -9/Scraptown | Visited Assassins FH 10172 | -9/Scraptown | Visited IN-MT5's Study 10541 | -9/Scraptown | Turned away by UFD registrar 10627 | -9/Scraptown | CR-KLE repaired 6 parts 10660 | -9/Scraptown | Build established: Mutant 10824 | -9/Scraptown | Entered Factory 10824 | -6/Factory | Evolved 6 slots: Power x1, Propulsion x1, Utility x2, Weapon x2 11025 | -6/Factory | Identified exit to Garrison 11027 | -6/Factory | Entered Garrison 11069 | -6/Garrison | Triggered checkpoint 11140 | -6/Garrison | Build established: Gunner 11146 | -6/Garrison | Garrison Relay disabled 11256 | -6/Garrison | Found Scimitar of Distortion 11276 | -6/Garrison | Triggered checkpoint 11301 | -6/Garrison | Destroyed 8 combat bots 11311 | -6/Garrison | Triggered checkpoint 11484 | -6/Garrison | Expanded RIF knowledge: Program Shield 11608 | -6/Garrison | Phase Generator disabled 11612 | -6/Garrison | Discovered new exit (range 3) 11615 | -6/Garrison | Build established: Tank 11645 | -6/Garrison | Triggered checkpoint 11796 | -6/Garrison | Garrison Relay disabled 11811 | -6/Garrison | Rescued a captive Derelict 11812 | -6/Garrison | Rescued a captive Derelict 11974 | -6/Garrison | Build established: Scavenger-Gunner 11979 | -6/Garrison | Triggered checkpoint 12091 | -6/Garrison | Garrison Relay disabled 12107 | -6/Garrison | Triggered checkpoint 12275 | -6/Garrison | Discovered new exit (range 3) 12513 | -6/Garrison | Triggered checkpoint 12655 | -6/Garrison | Discovered new exit (range 14) 12663 | -6/Garrison | Found embedded Infiltrators 12692 | -6/Garrison | Entered Factory 12692 | -6/Factory | Accompanied by 2 allies 12949 | -6/Factory | Build established: Tank 13042 | -6/Factory | First assault squad dispatched 13098 | -6/Factory | Identified exit to Garrison 13098 | -6/Factory | Entered Garrison 13098 | -6/Garrison | Accompanied by 2 allies 13178 | -6/Garrison | Triggered checkpoint 13436 | -6/Garrison | Expanded RIF knowledge: Structural Interface 13569 | -6/Garrison | Found Scimitar of Distortion 13703 | -6/Garrison | Triggered checkpoint 13703 | -6/Garrison | Spotted B-75 Beast 13703 | -6/Garrison | Triggered checkpoint 13769 | -6/Garrison | Destroyed B-75 Beast 13972 | -6/Garrison | Rescued a captive Derelict 13974 | -6/Garrison | Rescued a captive Derelict 14043 | -6/Garrison | Discovered new exit (range 14) 14120 | -6/Garrison | Build established: Scavenger-Tank 14278 | -6/Garrison | Triggered checkpoint 14306 | -6/Garrison | Garrison Relay disabled 14424 | -6/Garrison | Triggered checkpoint 14476 | -6/Garrison | Triggered checkpoint 14752 | -6/Garrison | Discovered new exit (range 6) 14758 | -6/Garrison | Triggered checkpoint 14811 | -6/Garrison | Garrison Relay disabled 15066 | -6/Garrison | Lost 3 allies 15372 | -6/Garrison | Discovered new exit (range 10) 15440 | -6/Garrison | Entered Factory 15440 | -5/Factory | Evolved 2 slots: Propulsion x1, Utility x1 15463 | -5/Factory | Identified exit to Garrison 15463 | -5/Factory | Entered Garrison 15464 | -5/Garrison | Build established: Tank 15539 | -5/Garrison | Learned Factory security intel 15550 | -5/Garrison | Triggered checkpoint 15706 | -5/Garrison | Spotted B-75 Beast 15795 | -5/Garrison | Triggered checkpoint 15855 | -5/Garrison | Allies destroyed B-75 Beast 15912 | -5/Garrison | Triggered checkpoint 15995 | -5/Garrison | Destroyed 8 combat bots 16186 | -5/Garrison | Discovered new exit (range 10) 16233 | -5/Garrison | Triggered checkpoint 16290 | -5/Garrison | Garrison Relay disabled 16380 | -5/Garrison | Triggered checkpoint 16494 | -5/Garrison | Garrison Relay disabled 16530 | -5/Garrison | Discovered new exit (range 13) 16535 | -5/Garrison | Found embedded Infiltrators 16629 | -5/Garrison | Triggered checkpoint 16833 | -5/Garrison | Triggered checkpoint 16840 | -5/Garrison | Spotted Striker 16866 | -5/Garrison | Destroyed Striker 16913 | -5/Garrison | Rewired Striker 16926 | -5/Garrison | Rewired Striker 16981 | -5/Garrison | Garrison Relay disabled 16995 | -5/Garrison | Garrison Relay disabled 17024 | -5/Garrison | Discovered new exit (range 8) 17085 | -5/Garrison | Expanded RIF knowledge: Watcher Feeds 17279 | -5/Garrison | Entered Factory 17279 | -4/Factory | Accompanied by 1 ally 17279 | -4/Factory | Evolved 2 slots: Propulsion x1, Utility x1 18028 | -4/Factory | Found Exp. Thermal Defense Suite 18043 | -4/Factory | Identified exit to Garrison 18043 | -4/Factory | Entered Garrison 18160 | -4/Garrison | Spotted B-86 Titan 18172 | -4/Garrison | Triggered checkpoint 18212 | -4/Garrison | Triggered checkpoint 18219 | -4/Garrison | Triggered checkpoint 18289 | -4/Garrison | Discovered new exit (range 10) 18318 | -4/Garrison | Lost 14 parts (1p5n5u3w) 18319 | -4/Garrison | Triggered checkpoint 18375 | -4/Garrison | Core integrity fell below 50% 18379 | -4/Garrison | Entered Research 18379 | -3/Research | Evolved 2 slots: Power x1, Weapon x1 18408 | -3/Research | Lost 7 parts (1p2n3u1w) 18530 | -3/Research | Build established: Mutant 18633 | -3/Research | Found Exp. Thermal Shield 18893 | -3/Research | Build established: Tank 19212 | -3/Research | Fabricated Adv. Heavy Siege Treads (x1) 19501 | -3/Research | Found Prototype Launcher 19501 | -3/Research | Identified Tactical Quantum Warhead 19802 | -3/Research | Build established: Scavenger-Tank 19913 | -3/Research | Found Prototype Launcher 19922 | -3/Research | Identified Com. Tesla Bomb Launcher 19924 | -3/Research | Central database locked down 19975 | -3/Research | System corruption reached 10% 20048 | -3/Research | Garrison activated, responded to threat 20129 | -3/Research | First assault squad dispatched 20159 | -3/Research | Destroyed 7 combat bots 20204 | -3/Research | Spotted B-86 Titan 20227 | -3/Research | Destroyed B-86 Titan 20340 | -3/Research | Destroyed 7 combat bots 20438 | -3/Research | Found Prototype Protection 20438 | -3/Research | Identified Centrium Heavy Armor Plating 20696 | -3/Research | Discovered new exit (range 5) 20928 | -3/Research | Identified exit to Research 21532 | -3/Research | Found Prototype Device 21532 | -3/Research | Identified Exp. Shield Generator 22073 | -3/Research | Destroyed 8 combat bots 22467 | -3/Research | System corruption reached 30% 22505 | -3/Research | High security lockdown imminent 22581 | -3/Research | Lost 3 parts (3u) 22585 | -3/Research | High security lockdown engaged 22670 | -3/Research | Spotted Striker 22703 | -3/Research | Destroyed 9 combat bots 22704 | -3/Research | Core integrity fell below 50% 22736 | -3/Research | Spotted Investigator 22737 | -3/Research | Scanned by Researcher 22747 | -3/Research | Destroyed 7 combat bots 22748 | -3/Research | Core integrity fell below 20% 22775 | -3/Research | Destroyed by P-80 Master with Gamma Rifle Last Messages --------------- Penetrated by Slug. Prc. Phase Gun destroyed. Held in stasis. Investigator is analyzing... P-80 Master stasis bubble strength at 123. Power failure, Antimatter Reactor shutdown. P-80 Master stasis bubble strength at 116. Antimatter Reactor destroyed. System corrupted by crushing effect (+3). Knocked back. Overheating: System interference. Prc. Phase Gun temporarily disabled. Graviton Reactor destroyed. P-80 Master stasis bubble strength at 109. Overheating: Centrium Wheel damaged (-100). The unstable cave ceiling collapses. P-80 Master crushed by falling debris. The unstable cave ceiling collapses. X0-1V1 is amused. X0-1V1 laughs nastily! Map ----- +----------------------------------------------------+ | ?????????????????????????????????????????????# | | ?????????????????????????????????????????????# | | ?????????????????????????????????????????????# | | ?????????????????????????????????????????????# | | ?????????????????????????????????????????????# | | ?????????????????????????????????????????????+ | | ?????????????????????????????????????????????# | | ?????????????????????????????????????????????# | | ?????????????????????????????????????????????# | | ?????????????????????????????????????????????# | | ?????????????????????????????????????????????# | | ?????????????????????????????????????????????# | | ?????????????????????????????????????????????+ | | ?????????????????????????????????????????????# | | ?????????????????????????????????????????????# % | | ?????????????????????????????????????????????# | | ?????????????????????????????????????????????# | | ???????????? #????????????????#########??????# | | ????????????? ??????????????? ########! | | ??????????#+##"###????????# # | | ?????????? " ????????# """"" # | | ?????????# " "%" ##?????? """" # | | ?????????# !"%" " !# ####??? """"" # | | ?????????? " %= ## ### # ### | | ?????????### p # # ?? # #?# | | ????????## # h@ #???#+##+### #?# | | ??????? # h i gl ##### #?# | | ???????! # # =!c%bp #?# | | ??????? # =*/*=p=pp #?# | | ??????? =p=% =h!# #### #?# | | ??????? # #/% m ##############?? | | ???????? # # = #????????????? | | ???????? # # # [ # #????????????? | | ????????? ![= ####????????????? | | ????????? = #????????????????? ?? | | ????????? ##???????????????????? | | ?????????? # # #???????????????????? | | ?????????? # ## ##???????????????????? | | ??????????? # ##????????????????????? | | ??????????? ## #?????????????????? ?? | | ????????????? ##?? ##????????????????"""S"" | | ??????????????? # ##????#???????????????# """ "" | | ??????????????????#??????????????????????# | | ?????????????????????????????????????????# | | ?????????????????????????????????????????# | | ####?????????????????????????????????????# """ " | | ????????????????????????????????????????""" " | | ????????????????????????????????????????"" ?? | | ????????????????????????????????????????????? | | ????????????????????????????????????????????? | +----------------------------------------------------+ Best States ------------- Heat Dissipation 84 Energy Generation 69 Energy Capacity 1240 Matter Stores 593 Matter Capacity 1100 Sight Range 16 Terrain Scan Density 10 Jamming Range 12 Base Temperature (-) 200 EM Shielding 4 Armor Coverage 1200 Resistance: KI 30 Resistance: TH 30 Weapon Cycling 25 Phase Shifting 15 Evasion (%) 55 Targeting Accuracy 10 Recoil Reduction 6 Matter Filtering 50 Offensive Hacking 14 Defensive Hacking 16 Relay Coupler Types 1 Relay Coupler Value 27 Item Schematics ----------------- None Robot Schematics ------------------ None Fabricated ------------ Adv. Heavy Siege Treads | x1 | -3/Research | Preloaded Repaired ---------- Lgt. Armor Plating | 18% | -10/Materials Studied --------- Lgt. Treads | -9/Materials | Hacked Hvy. Assault Rifle | -9/Materials | Hacked Hvy. Machine Gun | -3/Research | Hacked Alien Tech Used ----------------- None Achievements -------------- None Challenges ------------ None Game ------ Seed CouplerPointyRegenerator Manual? 0 Play Time 04:18:53 Cumulative 452.7 hours Start 2026.06.26 @ 18:39:08 End 2026.06.26 @ 23:30:11 Sessions 4 Manual Loads 0 Difficulty Rogue Special Mode None Game No. 286 Rogue 286 Adventurer 0 Explorer 0 Win Type - Total 32 Types 16/1/7/2/1/1/1/1/0/2 Lore% 95 Gallery% 89 Achievement% 80 Wizard Run 0 Options --------- Layout 1 ASCII 0 Keyboard 0 Movement Numpad Keybinds 0 Fullscreen 1 Font 24/Proggy Map View 50x35 Zoom Use 0% Tactical HUD 0 Map Filters NONE Filters NONE Steam 1 RUN: 23fbe40e-2350-4505-926a-feaff7cd3f8f